[Event "Late-Titled-Tuesday-Blitz-May-07-2024"]
[Site "Chess.com"]
[Date "2024.05.07"]
[Round "4"]
[White "albayo"]
[Black "albi1999"]
[Result "1-0"]
[WhiteElo "2438"]
[BlackElo "2644"]
[TimeControl "180+1"]
[EndTime "14:38:52 PDT"]
[Termination "albayo won by resignation"]

1. e4 {[%clk 0:02:56.6]} 1... c5 {[%clk 0:02:59.6]} 2. Nf3 {[%clk 0:02:56.9]}
2... a6 {[%clk 0:02:59.1]} 3. c4 {[%clk 0:02:56.4]} 3... Nc6 {[%clk 0:02:58.1]}
4. d4 {[%clk 0:02:56.6]} 4... cxd4 {[%clk 0:02:59]} 5. Nxd4 {[%clk 0:02:57]}
5... Nf6 {[%clk 0:02:59.9]} 6. Nc3 {[%clk 0:02:57.3]} 6... e5 {[%clk 0:02:59.8]}
7. Nc2 {[%clk 0:02:45.8]} 7... Bc5 {[%clk 0:02:55.6]} 8. Be3 {[%clk 0:02:43.7]}
8... Bxe3 {[%clk 0:02:54.2]} 9. Nxe3 {[%clk 0:02:44.6]} 9... O-O {[%clk
0:02:53.6]} 10. Be2 {[%clk 0:02:40.3]} 10... d6 {[%clk 0:02:53.6]} 11. O-O
{[%clk 0:02:39.3]} 11... Be6 {[%clk 0:02:53.8]} 12. f3 {[%clk 0:02:37.3]} 12...
Rc8 {[%clk 0:02:50.1]} 13. Qd2 {[%clk 0:02:36.5]} 13... Nd4 {[%clk 0:02:48]} 14.
Rfd1 {[%clk 0:02:33.8]} 14... Qb6 {[%clk 0:02:33.4]} 15. b3 {[%clk 0:01:44.8]}
15... Rfd8 {[%clk 0:02:31.6]} 16. Kh1 {[%clk 0:01:42.7]} 16... h5 {[%clk
0:02:23.4]} 17. Rac1 {[%clk 0:01:41.8]} 17... h4 {[%clk 0:02:23.2]} 18. Na4
{[%clk 0:01:29.4]} 18... Qa7 {[%clk 0:02:16.7]} 19. Bf1 {[%clk 0:01:19.6]} 19...
h3 {[%clk 0:02:11.4]} 20. Qa5 {[%clk 0:01:17.7]} 20... Nd7 {[%clk 0:02:08.5]}
21. Nc2 {[%clk 0:01:09.9]} 21... hxg2+ {[%clk 0:02:03.2]} 22. Kxg2 {[%clk
0:01:07.5]} 22... Nc6 {[%clk 0:01:55.4]} 23. Qe1 {[%clk 0:01:01.5]} 23... Nf6
{[%clk 0:01:52.5]} 24. Qf2 {[%clk 0:00:58]} 24... Qb8 {[%clk 0:01:49.3]} 25. Nb6
{[%clk 0:00:53]} 25... Rc7 {[%clk 0:01:49.1]} 26. Ne3 {[%clk 0:00:52]} 26... Ne7
{[%clk 0:01:45.8]} 27. Qd2 {[%clk 0:00:25.3]} 27... Ng6 {[%clk 0:01:45.4]} 28.
c5 {[%clk 0:00:24.6]} 28... Nf4+ {[%clk 0:01:44.3]} 29. Kh1 {[%clk 0:00:23.2]}
29... Rc6 {[%clk 0:01:37.4]} 30. Na4 {[%clk 0:00:15]} 30... d5 {[%clk
0:01:35.5]} 31. exd5 {[%clk 0:00:14.5]} 31... N6xd5 {[%clk 0:01:34.2]} 32. Nxd5
{[%clk 0:00:14.6]} 32... Bxd5 {[%clk 0:01:34]} 33. Qe3 {[%clk 0:00:14.7]} 33...
Rf6 {[%clk 0:01:22.2]} 34. Nc3 {[%clk 0:00:13.7]} 34... Bc6 {[%clk 0:01:10.5]}
35. Ne4 {[%clk 0:00:13.8]} 35... Rh6 {[%clk 0:01:07.6]} 36. Bc4 {[%clk
0:00:11.4]} 36... Nd5 {[%clk 0:00:34.5]} 37. Bxd5 {[%clk 0:00:10.9]} 37... Rxd5
{[%clk 0:00:33.6]} 38. Rxd5 {[%clk 0:00:10]} 38... Bxd5 {[%clk 0:00:34.5]} 39.
Rd1 {[%clk 0:00:10.6]} 39... Bc6 {[%clk 0:00:34.4]} 40. Rd6 {[%clk 0:00:08.1]}
40... Rxd6 {[%clk 0:00:32.1]} 41. Nxd6 {[%clk 0:00:06.5]} 41... Qxd6 {[%clk
0:00:29.1]} 42. cxd6 {[%clk 0:00:06]} 1-0

[Event "Late-Titled-Tuesday-Blitz-May-07-2024"]
[Site "Chess.com"]
[Date "2024.05.07"]
[Round "4"]
[White "ContrVersia"]
[Black "LiemLe"]
[Result "1/2-1/2"]
[WhiteElo "2889"]
[BlackElo "3073"]
[TimeControl "180+1"]
[EndTime "14:38:53 PDT"]
[Termination "Game drawn by repetition"]

1. e4 {[%clk 0:03:00.9]} 1... c5 {[%clk 0:02:59.9]} 2. Nf3 {[%clk 0:03:00.5]}
2... d6 {[%clk 0:03:00.4]} 3. d4 {[%clk 0:03:00.3]} 3... cxd4 {[%clk 0:03:01.3]}
4. Nxd4 {[%clk 0:03:01.2]} 4... Nf6 {[%clk 0:03:01.9]} 5. Nc3 {[%clk 0:03:01.6]}
5... a6 {[%clk 0:03:02.6]} 6. Bd3 {[%clk 0:03:01.9]} 6... g6 {[%clk 0:02:59.7]}
7. f3 {[%clk 0:03:00.6]} 7... Bg7 {[%clk 0:02:58.6]} 8. Be3 {[%clk 0:02:58.3]}
8... Nc6 {[%clk 0:02:57.8]} 9. Qd2 {[%clk 0:02:54]} 9... Bd7 {[%clk 0:02:57.9]}
10. Nde2 {[%clk 0:02:51.4]} 10... h5 {[%clk 0:02:52]} 11. a4 {[%clk 0:02:51.2]}
11... Rc8 {[%clk 0:02:50.4]} 12. O-O {[%clk 0:02:50.6]} 12... O-O {[%clk
0:02:50]} 13. Bh6 {[%clk 0:02:29.6]} 13... Ne5 {[%clk 0:02:49.7]} 14. Bxg7
{[%clk 0:02:29.1]} 14... Kxg7 {[%clk 0:02:50.6]} 15. a5 {[%clk 0:02:28.1]} 15...
b5 {[%clk 0:02:37.3]} 16. Na2 {[%clk 0:02:05]} 16... d5 {[%clk 0:02:10.7]} 17.
exd5 {[%clk 0:01:52.1]} 17... Nxd3 {[%clk 0:02:10.7]} 18. cxd3 {[%clk
0:01:47.8]} 18... Nxd5 {[%clk 0:02:10.9]} 19. Rfc1 {[%clk 0:01:36.4]} 19... Bc6
{[%clk 0:01:33.4]} 20. Rc5 {[%clk 0:01:29.3]} 20... Bb7 {[%clk 0:01:29.1]} 21.
d4 {[%clk 0:01:29.4]} 21... h4 {[%clk 0:01:15.9]} 22. h3 {[%clk 0:01:29.8]}
22... Qd6 {[%clk 0:01:14.5]} 23. Rac1 {[%clk 0:01:29.4]} 23... Rfd8 {[%clk
0:01:13.2]} 24. Qg5 {[%clk 0:01:26.8]} 24... Qe6 {[%clk 0:01:03.1]} 25. Kf2
{[%clk 0:01:24.9]} 25... Rxc5 {[%clk 0:00:55.1]} 26. dxc5 {[%clk 0:01:21.7]}
26... f6 {[%clk 0:00:26]} 27. Qd2 {[%clk 0:01:21.7]} 27... g5 {[%clk 0:00:19.5]}
28. c6 {[%clk 0:01:09.9]} 28... Bc8 {[%clk 0:00:19.4]} 29. Nb4 {[%clk
0:01:06.7]} 29... Nf4 {[%clk 0:00:16.5]} 30. Qe3 {[%clk 0:00:57.1]} 30... Qd6
{[%clk 0:00:17]} 31. Nxf4 {[%clk 0:00:43.2]} 31... gxf4 {[%clk 0:00:17.1]} 32.
Qc3 {[%clk 0:00:38.2]} 32... Qc7 {[%clk 0:00:17.5]} 33. Nd3 {[%clk 0:00:30.1]}
33... e5 {[%clk 0:00:17.2]} 34. Nb4 {[%clk 0:00:14]} 34... Rd4 {[%clk 0:00:17]}
35. Qc5 {[%clk 0:00:13.9]} 35... Qxa5 {[%clk 0:00:16.7]} 36. Qe7+ {[%clk
0:00:13.2]} 36... Kg6 {[%clk 0:00:17.2]} 37. Qe8+ {[%clk 0:00:13.2]} 37... Kg7
{[%clk 0:00:17.5]} 38. Qe7+ {[%clk 0:00:10.4]} 38... Kg6 {[%clk 0:00:17.7]} 39.
Qe8+ {[%clk 0:00:10.8]} 39... Kg7 {[%clk 0:00:17.2]} 40. Qe7+ {[%clk 0:00:04.1]}
1/2-1/2

[Event "Late-Titled-Tuesday-Blitz-May-07-2024"]
[Site "Chess.com"]
[Date "2024.05.07"]
[Round "4"]
[White "rhwr"]
[Black "balack95"]
[Result "1/2-1/2"]
[WhiteElo "2278"]
[BlackElo "2508"]
[TimeControl "180+1"]
[EndTime "14:38:59 PDT"]
[Termination "Game drawn by stalemate"]

1. e4 {[%clk 0:03:00.9]} 1... c5 {[%clk 0:02:58.7]} 2. Be2 {[%clk 0:02:59]} 2...
Nc6 {[%clk 0:02:57.2]} 3. f4 {[%clk 0:02:58.8]} 3... g6 {[%clk 0:02:56.9]} 4.
Nf3 {[%clk 0:02:59.2]} 4... Bg7 {[%clk 0:02:57.6]} 5. O-O {[%clk 0:02:59.5]}
5... Nh6 {[%clk 0:02:58.2]} 6. d3 {[%clk 0:02:59.6]} 6... O-O {[%clk 0:02:58.7]}
7. c3 {[%clk 0:02:59.4]} 7... d5 {[%clk 0:02:59]} 8. Qe1 {[%clk 0:02:58.3]} 8...
dxe4 {[%clk 0:02:57.8]} 9. dxe4 {[%clk 0:02:58]} 9... Qb6 {[%clk 0:02:56.5]} 10.
Kh1 {[%clk 0:02:54.9]} 10... Bg4 {[%clk 0:02:52.7]} 11. h3 {[%clk 0:02:53.6]}
11... Bxf3 {[%clk 0:02:53.1]} 12. Bxf3 {[%clk 0:02:54.1]} 12... e5 {[%clk
0:02:53.8]} 13. Na3 {[%clk 0:02:50.4]} 13... Qc7 {[%clk 0:02:52.3]} 14. Nb5
{[%clk 0:02:36.7]} 14... Qb8 {[%clk 0:02:51.7]} 15. f5 {[%clk 0:02:28]} 15... f6
{[%clk 0:02:43.3]} 16. Qh4 {[%clk 0:02:22.6]} 16... g5 {[%clk 0:02:43]} 17. Qf2
{[%clk 0:02:18.6]} 17... a6 {[%clk 0:02:42.3]} 18. Na3 {[%clk 0:02:17.6]} 18...
Rd8 {[%clk 0:02:42.8]} 19. Qxc5 {[%clk 0:02:16.2]} 19... Nf7 {[%clk 0:02:39.8]}
20. Bh5 {[%clk 0:02:14]} 20... Qc7 {[%clk 0:02:38.9]} 21. Qc4 {[%clk 0:02:08.3]}
21... b5 {[%clk 0:02:37.2]} 22. Bxf7+ {[%clk 0:02:05.6]} 22... Kf8 {[%clk
0:02:35.7]} 23. Qb3 {[%clk 0:01:32.2]} 23... Qxf7 {[%clk 0:02:31.6]} 24. Qxf7+
{[%clk 0:01:30.6]} 24... Kxf7 {[%clk 0:02:32.5]} 25. Be3 {[%clk 0:01:30]} 25...
Bf8 {[%clk 0:02:32]} 26. Nc2 {[%clk 0:01:28.9]} 26... Na5 {[%clk 0:02:30.1]} 27.
b3 {[%clk 0:01:28]} 27... Rd3 {[%clk 0:02:28.1]} 28. Rad1 {[%clk 0:01:25.2]}
28... Rxc3 {[%clk 0:02:26.5]} 29. Rd2 {[%clk 0:01:23.1]} 29... Rac8 {[%clk
0:02:20.9]} 30. Bb6 {[%clk 0:01:22.5]} 30... Rxc2 {[%clk 0:02:10.9]} 31. Rxc2
{[%clk 0:01:17.1]} 31... Rxc2 {[%clk 0:02:11.8]} 32. Bxa5 {[%clk 0:01:17.4]}
32... Rxa2 {[%clk 0:02:12.5]} 33. Bb6 {[%clk 0:01:13.7]} 33... Re2 {[%clk
0:02:09]} 34. Ra1 {[%clk 0:01:10.6]} 34... Rxe4 {[%clk 0:02:08.5]} 35. Rxa6
{[%clk 0:01:10.4]} 35... Rb4 {[%clk 0:02:08]} 36. Ra7+ {[%clk 0:01:07.9]} 36...
Kg8 {[%clk 0:01:35.6]} 37. Ra8 {[%clk 0:01:07.4]} 37... Rxb3 {[%clk 0:01:36.1]}
38. Bc5 {[%clk 0:01:07]} 38... Kg7 {[%clk 0:01:36]} 39. Bxf8+ {[%clk 0:01:05]}
39... Kf7 {[%clk 0:01:36.5]} 40. Bc5 {[%clk 0:01:03.2]} 40... Rc3 {[%clk
0:01:33.4]} 41. Ra7+ {[%clk 0:00:59.6]} 41... Kg8 {[%clk 0:01:32.6]} 42. Be7
{[%clk 0:00:58.7]} 42... Rc1+ {[%clk 0:01:28.8]} 43. Kh2 {[%clk 0:00:58.1]}
43... Rf1 {[%clk 0:01:28.6]} 44. g4 {[%clk 0:00:51.1]} 44... e4 {[%clk 0:01:26]}
45. Bxf6 {[%clk 0:00:50.4]} 45... e3 {[%clk 0:01:26.5]} 46. Re7 {[%clk
0:00:49.1]} 46... Re1 {[%clk 0:01:17.2]} 47. Bxg5 {[%clk 0:00:47.9]} 47... e2
{[%clk 0:01:17.8]} 48. Bd2 {[%clk 0:00:45.9]} 48... Rb1 {[%clk 0:01:16.8]} 49.
Rxe2 {[%clk 0:00:44.9]} 49... Rb2 {[%clk 0:01:17.5]} 50. Kg2 {[%clk 0:00:37.2]}
50... b4 {[%clk 0:01:17.3]} 51. Kf2 {[%clk 0:00:37.6]} 51... Rb3 {[%clk
0:01:16.4]} 52. g5 {[%clk 0:00:31.5]} 52... Rxh3 {[%clk 0:01:12.5]} 53. Bxb4
{[%clk 0:00:30.7]} 53... Rh5 {[%clk 0:01:12.3]} 54. Be7 {[%clk 0:00:29.2]} 54...
Kf7 {[%clk 0:01:11.8]} 55. Bf6 {[%clk 0:00:29]} 55... h6 {[%clk 0:01:10.5]} 56.
Re7+ {[%clk 0:00:28.2]} 56... Kf8 {[%clk 0:01:11.1]} 57. g6 {[%clk 0:00:22.3]}
57... Rxf5+ {[%clk 0:01:10.7]} 58. Kg3 {[%clk 0:00:20.5]} 58... Rxf6 {[%clk
0:01:11.3]} 59. Rf7+ {[%clk 0:00:17.9]} 59... Rxf7 {[%clk 0:01:09.9]} 60. gxf7
{[%clk 0:00:18.8]} 60... Kxf7 {[%clk 0:01:10.8]} 61. Kg4 {[%clk 0:00:18.9]}
61... Kg6 {[%clk 0:01:11.7]} 62. Kh4 {[%clk 0:00:18.9]} 62... Kg7 {[%clk
0:01:11.7]} 63. Kg4 {[%clk 0:00:19.8]} 63... Kh7 {[%clk 0:01:12.4]} 64. Kh4
{[%clk 0:00:20.7]} 64... Kg6 {[%clk 0:01:13.3]} 65. Kg4 {[%clk 0:00:21.6]} 65...
h5+ {[%clk 0:01:14.2]} 66. Kh4 {[%clk 0:00:22.5]} 66... Kh6 {[%clk 0:01:14.8]}
67. Kh3 {[%clk 0:00:23.4]} 67... Kg5 {[%clk 0:01:15.7]} 68. Kg3 {[%clk
0:00:24.3]} 68... Kf5 {[%clk 0:01:16.5]} 69. Kh3 {[%clk 0:00:25.2]} 69... Kf4
{[%clk 0:01:17.1]} 70. Kh2 {[%clk 0:00:25.5]} 70... Kg5 {[%clk 0:01:18]} 71. Kg2
{[%clk 0:00:26.1]} 71... Kg4 {[%clk 0:01:18.9]} 72. Kh2 {[%clk 0:00:27]} 72...
Kh4 {[%clk 0:01:19.7]} 73. Kg2 {[%clk 0:00:27.9]} 73... Kg4 {[%clk 0:01:19.6]}
74. Kh2 {[%clk 0:00:28.8]} 74... h4 {[%clk 0:01:20.3]} 75. Kg2 {[%clk
0:00:29.7]} 75... h3+ {[%clk 0:01:20.8]} 76. Kh2 {[%clk 0:00:30.6]} 76... Kh4
{[%clk 0:01:21.7]} 77. Kh1 {[%clk 0:00:30.8]} 77... Kg3 {[%clk 0:01:22.6]} 78.
Kg1 {[%clk 0:00:31.7]} 78... h2+ {[%clk 0:01:23.5]} 79. Kh1 {[%clk 0:00:32.4]}
79... Kh3 {[%clk 0:01:24.4]} 1/2-1/2

[Event "Late-Titled-Tuesday-Blitz-May-07-2024"]
[Site "Chess.com"]
[Date "2024.05.07"]
[Round "4"]
[White "YouShallNotPass001"]
[Black "Magicmaster17"]
[Result "1-0"]
[WhiteElo "2458"]
[BlackElo "2881"]
[TimeControl "180+1"]
[EndTime "14:39:02 PDT"]
[Termination "YouShallNotPass001 won by resignation"]

1. e4 {[%clk 0:03:00.9]} 1... e6 {[%clk 0:02:58.3]} 2. Nf3 {[%clk 0:02:54.2]}
2... d5 {[%clk 0:02:58.1]} 3. exd5 {[%clk 0:02:55.1]} 3... exd5 {[%clk
0:02:57.9]} 4. d4 {[%clk 0:02:55.4]} 4... Bd6 {[%clk 0:02:55.9]} 5. c4 {[%clk
0:02:55.5]} 5... Nf6 {[%clk 0:02:55.8]} 6. c5 {[%clk 0:02:55.1]} 6... Be7 {[%clk
0:02:55.6]} 7. a3 {[%clk 0:02:54]} 7... O-O {[%clk 0:02:54.5]} 8. Nc3 {[%clk
0:02:51.5]} 8... c6 {[%clk 0:02:51.2]} 9. h3 {[%clk 0:02:49.5]} 9... Re8 {[%clk
0:02:48.7]} 10. Be3 {[%clk 0:02:45.7]} 10... Bf5 {[%clk 0:02:48.1]} 11. Bd3
{[%clk 0:02:44.8]} 11... Ne4 {[%clk 0:02:42.8]} 12. Qc2 {[%clk 0:02:42.7]} 12...
Bf6 {[%clk 0:02:42.1]} 13. O-O-O {[%clk 0:02:20.8]} 13... b6 {[%clk 0:02:38.4]}
14. cxb6 {[%clk 0:02:17.7]} 14... axb6 {[%clk 0:02:34.8]} 15. g4 {[%clk
0:02:18]} 15... Bg6 {[%clk 0:02:34.3]} 16. h4 {[%clk 0:02:17.6]} 16... Nxc3
{[%clk 0:02:24.3]} 17. Bxg6 {[%clk 0:02:17]} 17... Ne4 {[%clk 0:01:37.5]} 18.
Bxe4 {[%clk 0:01:52.9]} 18... Rxe4 {[%clk 0:01:33.9]} 19. g5 {[%clk 0:01:51.3]}
19... Be7 {[%clk 0:01:34.1]} 20. h5 {[%clk 0:01:50.3]} 20... Qd6 {[%clk
0:01:17.2]} 21. Rdg1 {[%clk 0:01:45.8]} 21... c5 {[%clk 0:01:02.6]} 22. g6
{[%clk 0:01:42]} 22... fxg6 {[%clk 0:00:58.6]} 23. hxg6 {[%clk 0:01:30.1]} 23...
h6 {[%clk 0:00:58.6]} 24. Nd2 {[%clk 0:01:00.1]} 24... Re6 {[%clk 0:00:53.3]}
25. Bxh6 {[%clk 0:00:38.7]} 25... gxh6 {[%clk 0:00:48.2]} 26. Rxh6 {[%clk
0:00:39.6]} 26... Qf4 {[%clk 0:00:39.7]} 27. Rh8+ {[%clk 0:00:31.4]} 27... Kg7
{[%clk 0:00:28.9]} 28. Rh7+ {[%clk 0:00:20.4]} 28... Kg8 {[%clk 0:00:27.7]} 29.
g7 {[%clk 0:00:18.6]} 29... Rh6 {[%clk 0:00:19.1]} 30. Rh8+ {[%clk 0:00:14.6]}
30... Rxh8 {[%clk 0:00:16.4]} 31. gxh8=Q+ {[%clk 0:00:15.5]} 31... Kxh8 {[%clk
0:00:17.3]} 32. Qg6 {[%clk 0:00:14.9]} 32... Bg5 {[%clk 0:00:10.8]} 33. Rh1+
{[%clk 0:00:14.6]} 33... Bh6 {[%clk 0:00:07.3]} 34. Rxh6+ {[%clk 0:00:13.9]}
34... Qxh6 {[%clk 0:00:08.2]} 35. Qxh6+ {[%clk 0:00:14.1]} 35... Kg8 {[%clk
0:00:09.1]} 36. Qe6+ {[%clk 0:00:13.7]} 36... Kg7 {[%clk 0:00:08.9]} 37. Qe5+
{[%clk 0:00:13.8]} 37... Kg6 {[%clk 0:00:09.1]} 38. Qe6+ {[%clk 0:00:13.7]}
38... Kg5 {[%clk 0:00:09.3]} 39. Qxd5+ {[%clk 0:00:13.6]} 39... Kf4 {[%clk
0:00:09.3]} 40. Qxa8 {[%clk 0:00:14]} 40... cxd4 {[%clk 0:00:09]} 41. Qxb8+
{[%clk 0:00:14.1]} 41... Kf5 {[%clk 0:00:07.9]} 42. Qxb6 {[%clk 0:00:14.2]}
42... Kf4 {[%clk 0:00:08.8]} 43. Qxd4+ {[%clk 0:00:14.2]} 1-0

[Event "Late-Titled-Tuesday-Blitz-May-07-2024"]
[Site "Chess.com"]
[Date "2024.05.07"]
[Round "4"]
[White "Denisenko_Denis"]
[Black "ansko1999"]
[Result "0-1"]
[WhiteElo "2393"]
[BlackElo "2667"]
[TimeControl "180+1"]
[EndTime "14:39:03 PDT"]
[Termination "ansko1999 won on time"]

1. e4 {[%clk 0:03:00.9]} 1... c5 {[%clk 0:02:59.6]} 2. Nf3 {[%clk 0:03:00.4]}
2... Nf6 {[%clk 0:02:59.9]} 3. Nc3 {[%clk 0:02:59.1]} 3... d5 {[%clk 0:02:59.8]}
4. exd5 {[%clk 0:02:58.6]} 4... Nxd5 {[%clk 0:03:00.7]} 5. Bc4 {[%clk
0:02:56.6]} 5... Nxc3 {[%clk 0:02:57.4]} 6. bxc3 {[%clk 0:02:56.1]} 6... Nc6
{[%clk 0:02:53.9]} 7. d4 {[%clk 0:02:55.8]} 7... cxd4 {[%clk 0:02:41]} 8. cxd4
{[%clk 0:02:55.5]} 8... e6 {[%clk 0:02:28.7]} 9. O-O {[%clk 0:02:54.1]} 9... Bd6
{[%clk 0:02:28.4]} 10. c3 {[%clk 0:02:50.6]} 10... O-O {[%clk 0:02:26]} 11. Re1
{[%clk 0:02:50.3]} 11... b6 {[%clk 0:02:22.7]} 12. Bd3 {[%clk 0:02:42.1]} 12...
h6 {[%clk 0:02:11]} 13. Qe2 {[%clk 0:02:30.4]} 13... Qc7 {[%clk 0:01:46.3]} 14.
Qe4 {[%clk 0:02:18.9]} 14... f5 {[%clk 0:01:46.9]} 15. Qh4 {[%clk 0:02:18.4]}
15... e5 {[%clk 0:01:40.9]} 16. dxe5 {[%clk 0:01:36.5]} 16... Nxe5 {[%clk
0:01:41.8]} 17. Nxe5 {[%clk 0:01:35.9]} 17... Bxe5 {[%clk 0:01:42.3]} 18. Ba3
{[%clk 0:01:28]} 18... Bf6 {[%clk 0:00:48.8]} 19. Qc4+ {[%clk 0:01:23.4]} 19...
Rf7 {[%clk 0:00:49.3]} 20. Re8+ {[%clk 0:01:13.7]} 20... Kh7 {[%clk 0:00:48.2]}
21. Qxc7 {[%clk 0:00:42.6]} 21... Rxc7 {[%clk 0:00:48.1]} 22. Bxf5+ {[%clk
0:00:36.7]} 22... g6 {[%clk 0:00:32.2]} 23. Be4 {[%clk 0:00:32.6]} 23... Bb7
{[%clk 0:00:09.9]} 24. Rxa8 {[%clk 0:00:24.2]} 24... Bxe4 {[%clk 0:00:10]} 25.
Re8 {[%clk 0:00:19.3]} 25... Bc6 {[%clk 0:00:07.3]} 26. Re6 {[%clk 0:00:16.1]}
26... Bg7 {[%clk 0:00:03.7]} 27. Rae1 {[%clk 0:00:13.6]} 27... Bd5 {[%clk
0:00:04]} 28. Re7 {[%clk 0:00:11.5]} 28... Rxe7 {[%clk 0:00:02.8]} 29. Rxe7
{[%clk 0:00:10.6]} 29... a5 {[%clk 0:00:03]} 30. Bd6 {[%clk 0:00:07.3]} 30...
Kg8 {[%clk 0:00:02.7]} 31. a3 {[%clk 0:00:05.2]} 31... Bxc3 {[%clk 0:00:02.2]}
32. Be5 {[%clk 0:00:03.8]} 32... Bxe5 {[%clk 0:00:01.4]} 33. Rxe5 {[%clk
0:00:04]} 33... Bc4 {[%clk 0:00:02.1]} 34. f3 {[%clk 0:00:01.3]} 34... b5 {[%clk
0:00:02.5]} 0-1

[Event "Late-Titled-Tuesday-Blitz-May-07-2024"]
[Site "Chess.com"]
[Date "2024.05.07"]
[Round "4"]
[White "gabduschew"]
[Black "IlanSchnaider"]
[Result "0-1"]
[WhiteElo "2432"]
[BlackElo "2708"]
[TimeControl "180+1"]
[EndTime "14:39:03 PDT"]
[Termination "IlanSchnaider won on time"]

1. e4 {[%clk 0:02:59.8]} 1... d5 {[%clk 0:02:58.4]} 2. exd5 {[%clk 0:02:58.8]}
2... c6 {[%clk 0:02:58.9]} 3. d4 {[%clk 0:02:58.6]} 3... cxd5 {[%clk 0:02:58.4]}
4. Nf3 {[%clk 0:02:55.9]} 4... Nc6 {[%clk 0:02:56.3]} 5. Bd3 {[%clk 0:02:55.9]}
5... Bg4 {[%clk 0:02:56.3]} 6. c3 {[%clk 0:02:56.1]} 6... e6 {[%clk 0:02:56.5]}
7. Qb3 {[%clk 0:02:52.8]} 7... Qc7 {[%clk 0:02:46]} 8. Nbd2 {[%clk 0:02:52.6]}
8... Bd6 {[%clk 0:02:45.2]} 9. O-O {[%clk 0:02:52]} 9... Nge7 {[%clk 0:02:45.4]}
10. h3 {[%clk 0:02:49.4]} 10... Bh5 {[%clk 0:02:45.1]} 11. Qc2 {[%clk
0:02:49.5]} 11... Bg6 {[%clk 0:02:45.3]} 12. Bxg6 {[%clk 0:02:49.5]} 12... Nxg6
{[%clk 0:02:46.2]} 13. Re1 {[%clk 0:02:49.7]} 13... O-O {[%clk 0:02:46.3]} 14.
Nf1 {[%clk 0:02:49.4]} 14... Rac8 {[%clk 0:02:44.1]} 15. a3 {[%clk 0:02:44.6]}
15... Qb6 {[%clk 0:02:43.8]} 16. Qd3 {[%clk 0:02:39.1]} 16... Na5 {[%clk
0:02:42.9]} 17. b4 {[%clk 0:02:36.9]} 17... Nc4 {[%clk 0:02:43.2]} 18. Bd2
{[%clk 0:02:36.1]} 18... a5 {[%clk 0:02:39.5]} 19. h4 {[%clk 0:02:35.8]} 19...
h6 {[%clk 0:02:28.1]} 20. h5 {[%clk 0:02:30.5]} 20... Nf4 {[%clk 0:02:27]} 21.
Bxf4 {[%clk 0:02:26.1]} 21... Bxf4 {[%clk 0:02:27.9]} 22. g3 {[%clk 0:02:22.2]}
22... Bd6 {[%clk 0:02:27.8]} 23. N1h2 {[%clk 0:02:19.4]} 23... Qc7 {[%clk
0:02:23]} 24. Kg2 {[%clk 0:02:15.2]} 24... Nb2 {[%clk 0:02:21.3]} 25. Qd2 {[%clk
0:02:13.1]} 25... Qxc3 {[%clk 0:02:20.4]} 26. Qe2 {[%clk 0:01:57.5]} 26... axb4
{[%clk 0:01:59.1]} 27. Rec1 {[%clk 0:01:38.5]} 27... Qb3 {[%clk 0:01:50.7]} 28.
axb4 {[%clk 0:01:27.3]} 28... Bxb4 {[%clk 0:01:39.2]} 29. Rab1 {[%clk
0:00:57.4]} 29... Rxc1 {[%clk 0:01:30.6]} 30. Rxc1 {[%clk 0:00:58.3]} 30... Nc4
{[%clk 0:01:22.6]} 31. Ne5 {[%clk 0:00:54.1]} 31... Nxe5 {[%clk 0:01:19.4]} 32.
Qxe5 {[%clk 0:00:55]} 32... Qd3 {[%clk 0:01:12.5]} 33. Rc7 {[%clk 0:00:39.5]}
33... b5 {[%clk 0:01:00]} 34. Rb7 {[%clk 0:00:22.3]} 34... Bc3 {[%clk
0:01:00.1]} 35. Nf3 {[%clk 0:00:19.9]} 35... b4 {[%clk 0:01:00.1]} 36. g4 {[%clk
0:00:10.6]} 36... Qe4 {[%clk 0:00:56.3]} 37. Qxe4 {[%clk 0:00:09.6]} 37... dxe4
{[%clk 0:00:57.2]} 38. Ne5 {[%clk 0:00:10.2]} 38... Bxd4 {[%clk 0:00:56.9]} 39.
Nd7 {[%clk 0:00:09.3]} 39... Rd8 {[%clk 0:00:56.2]} 40. Nb6 {[%clk 0:00:06.8]}
40... Bxb6 {[%clk 0:00:38.2]} 41. Rxb6 {[%clk 0:00:07.7]} 41... Rd2 {[%clk
0:00:38.9]} 42. Rxb4 {[%clk 0:00:03.3]} 42... e3 {[%clk 0:00:38.8]} 43. Rb8+
{[%clk 0:00:04.2]} 43... Kh7 {[%clk 0:00:38.8]} 44. Kg3 {[%clk 0:00:04.4]} 44...
Rxf2 {[%clk 0:00:38.9]} 45. Rb3 {[%clk 0:00:03.3]} 45... Re2 {[%clk 0:00:38.1]}
46. Kf3 {[%clk 0:00:03]} 46... Rh2 {[%clk 0:00:37.5]} 47. Kg3 {[%clk 0:00:01.9]}
47... Re2 {[%clk 0:00:36.4]} 48. Rxe3 {[%clk 0:00:02.8]} 48... Rxe3+ {[%clk
0:00:36.6]} 0-1